bitfinex-derivatives/quotes_BTCF0:USTF0_20251228
["timestamp","ask_amount","ask_price","bid_price","bid_amount"]
[1766902459552,0.09696,87757.0,87743.0,0.0114048]
[1766902459851,0.0243877,87756.0,87743.0,0.0114048]
[1766902460038,0.0243877,87755.0,87740.0,0.0114052]
[1766902460242,0.0243877,87754.0,87740.0,0.0114052]
[1766902460442,0.0243877,87753.0,87740.0,0.0114052]
[1766902460645,0.0243877,87752.0,87740.0,0.0114052]
[1766902460949,0.0243877,87751.0,87740.0,0.0114052]
[1766902461151,0.0243877,87750.0,87740.0,0.0114052]
[1766902461349,0.00017102,87756.0,87740.0,0.0114052]
[1766902461550,0.02415536,87755.0,87740.0,0.0114052]
[1766902461755,0.02415536,87754.0,87740.0,0.0114052]
[1766902462060,0.00017102,87756.0,87740.0,0.0114052]
[1766902462446,0.00017102,87756.0,87742.0,0.0114049]
[1766902462652,0.154,87755.0,87738.0,0.00017102]
[1766902462948,0.061,87755.0,87738.0,0.00017102]
[1766902463356,0.01486548,87761.0,87738.0,0.00017102]
[1766902463550,0.154,87760.0,87738.0,0.00017102]
[1766902463749,0.00017102,87758.0,87738.0,0.00017102]
[1766902463951,0.00017102,87758.0,87740.0,0.11443034]
[1766902464353,0.00017102,87758.0,87744.0,0.0114046]
[1766902474069,0.02402528,87757.0,87744.0,0.0114046]
[1766902474270,0.02402528,87756.0,87744.0,0.0114046]
[1766902474470,0.00017102,87758.0,87744.0,0.0114046]
[1766902475572,0.00017102,87758.0,87746.0,0.0114044]
[1766902475972,0.00017102,87758.0,87743.0,0.0114048]
[1766902476173,0.00017102,87758.0,87745.0,0.0114045]
[1766902476874,0.05704,87757.0,87745.0,0.0114045]
[1766902478267,0.04204,87757.0,87745.0,0.0114045]
[1766902478466,0.05704,87757.0,87745.0,0.0114045]
[1766902478672,0.05704,87756.0,87745.0,0.0114045]
[1766902482177,0.00904,87756.0,87745.0,0.0114045]
[1766902482382,0.05704,87758.0,87745.0,0.0114045]
[1766902483282,0.00346288,87761.0,87745.0,0.0114045]
[1766902483483,0.05704,87760.0,87750.0,0.11443034]
[1766902484470,0.00346288,87761.0,87750.0,0.11443034]
[1766902484783,0.03604,87760.0,87751.0,0.0114038]
[1766902484982,0.01504,87760.0,87751.0,0.0114038]
[1766902485877,0.02104,87759.0,87751.0,0.0114038]
[1766902486077,0.03604,87759.0,87751.0,0.0114038]
[1766902486280,0.00904,87759.0,87750.0,0.11443034]
[1766902486480,0.00904,87759.0,87750.0,0.12583424]
[1766902488387,0.00904,87759.0,87752.0,0.0114036]
[1766902490190,0.02409264,87758.0,87752.0,0.0114036]
[1766902490487,0.02409264,87757.0,87752.0,0.0114036]
[1766902490688,0.02409264,87756.0,87752.0,0.0114036]
[1766902490993,0.02409264,87755.0,87752.0,0.0114036]
[1766902491179,0.00904,87759.0,87752.0,0.0114036]
[1766902493094,0.00904,87759.0,87749.0,0.011404]
[1766902497191,0.00904,87759.0,87746.0,0.05704]
[1766902501196,0.0114022,87764.0,87749.0,0.11443034]
[1766902501387,0.0114018,87767.0,87749.0,0.12583434]
[1766902501593,0.15396,87766.0,87749.0,0.12583434]
[1766902501795,0.011402,87765.0,87749.0,0.12583434]
[1766902504502,0.011402,87765.0,87750.0,0.11443034]
[1766902504705,0.011402,87765.0,87749.0,0.011404]
[1766902504902,0.011402,87765.0,87750.0,0.11443034]
[1766902505401,0.011402,87765.0,87749.0,0.011404]
[1766902508511,0.02420919,87764.0,87749.0,0.011404]
[1766902508705,0.02420919,87763.0,87749.0,0.011404]
[1766902508894,0.02420919,87762.0,87749.0,0.011404]
[1766902509097,0.02420919,87761.0,87749.0,0.011404]
[1766902509301,0.02420919,87760.0,87749.0,0.011404]
[1766902509506,0.02420919,87759.0,87749.0,0.011404]
[1766902509706,0.02420919,87758.0,87749.0,0.011404]
[1766902509908,0.02420919,87757.0,87749.0,0.011404]
[1766902510102,0.02420919,87756.0,87749.0,0.011404]
[1766902510411,0.02420919,87755.0,87749.0,0.011404]
[1766902510610,0.011402,87765.0,87749.0,0.011404]
[1766902510810,0.02421032,87764.0,87749.0,0.011404]
[1766902511011,0.02421032,87763.0,87746.0,0.0684444]
[1766902511309,0.02421032,87762.0,87746.0,0.0684444]
[1766902511511,0.02421032,87761.0,87746.0,0.0684444]
[1766902511716,0.02421032,87760.0,87746.0,0.0684444]
[1766902511911,0.02421032,87759.0,87746.0,0.0684444]
[1766902512099,0.02421032,87758.0,87746.0,0.0684444]
[1766902512301,0.02421032,87757.0,87746.0,0.0684444]
[1766902512508,0.02421032,87756.0,87746.0,0.0684444]
[1766902512697,0.02421032,87755.0,87746.0,0.0684444]
[1766902512897,0.02421032,87754.0,87746.0,0.0684444]
[1766902513096,0.0114026,87761.0,87746.0,0.0684444]
[1766902513314,0.02421351,87760.0,87746.0,0.0684444]
[1766902513507,0.02421351,87759.0,87746.0,0.0684444]
[1766902513807,0.02421351,87758.0,87746.0,0.0684444]
[1766902514008,0.02421351,87757.0,87746.0,0.0684444]
[1766902514209,0.02421351,87756.0,87746.0,0.0684444]
[1766902514508,0.02421351,87755.0,87746.0,0.0684444]
[1766902514703,0.02421351,87754.0,87746.0,0.0684444]
[1766902514910,0.02421478,87753.0,87746.0,0.0684444]
[1766902515099,0.02421478,87752.0,87746.0,0.0684444]
[1766902515299,0.0114026,87761.0,87746.0,0.0684444]
[1766902515504,0.024215,87760.0,87746.0,0.0684444]
[1766902515708,0.024215,87759.0,87746.0,0.0684444]
[1766902516001,0.0114026,87761.0,87746.0,0.0684444]
[1766902516002,0.024215,87758.0,87746.0,0.0684444]
[1766902516208,0.024215,87757.0,87746.0,0.0684444]
[1766902516414,0.024215,87756.0,87746.0,0.0684444]
[1766902516617,0.024215,87755.0,87746.0,0.0684444]
[1766902516819,0.024215,87754.0,87746.0,0.0684444]
[1766902517009,0.024215,87753.0,87746.0,0.0684444]
[1766902517211,0.024215,87752.0,87746.0,0.0684444]
[1766902517411,0.11443034,87760.0,87746.0,0.0684444]
[1766902517613,0.02421559,87759.0,87746.0,0.0684444]
[1766902517819,0.02421559,87758.0,87746.0,0.0684444]
[1766902518020,0.02421559,87757.0,87746.0,0.0684444]
[1766902518321,0.02421559,87756.0,87746.0,0.0684444]
[1766902518519,0.02421559,87755.0,87746.0,0.0684444]
[1766902518713,0.02421559,87754.0,87746.0,0.0684444]
[1766902518912,0.02421559,87753.0,87746.0,0.0684444]
[1766902519112,0.02421559,87752.0,87746.0,0.0684444]
[1766902519312,0.11443034,87760.0,87746.0,0.0684444]
[1766902519612,0.02421629,87759.0,87746.0,0.0684444]
[1766902519813,0.02421629,87758.0,87746.0,0.0684444]
[1766902520123,0.02421629,87757.0,87746.0,0.0684444]
[1766902520413,0.02421629,87756.0,87746.0,0.0684444]
[1766902520612,0.02421629,87755.0,87746.0,0.0684444]
[1766902520817,0.02421629,87754.0,87746.0,0.0684444]
[1766902521017,0.02421629,87753.0,87746.0,0.0684444]
[1766902521217,0.02421629,87752.0,87746.0,0.0684444]
[1766902521418,0.0114026,87761.0,87746.0,0.0684444]
[1766902521619,0.02421714,87760.0,87746.0,0.0684444]
[1766902521816,0.02421714,87759.0,87746.0,0.0684444]
[1766902522016,0.02421714,87758.0,87746.0,0.0684444]
[1766902522219,0.02421714,87757.0,87746.0,0.0684444]
[1766902522418,0.02421714,87756.0,87746.0,0.0684444]
[1766902522621,0.02421714,87755.0,87746.0,0.0684444]
[1766902522817,0.02421714,87754.0,87746.0,0.0684444]
[1766902523018,0.02421714,87753.0,87746.0,0.0684444]
[1766902523218,0.02421714,87752.0,87746.0,0.0684444]
[1766902523420,0.0114026,87761.0,87746.0,0.0684444]
[1766902523623,0.02421783,87760.0,87746.0,0.0684444]
[1766902523825,0.02421783,87759.0,87746.0,0.0684444]
[1766902524026,0.02421783,87758.0,87746.0,0.0684444]
[1766902524320,0.02421783,87757.0,87746.0,0.0684444]
[1766902524522,0.02421783,87756.0,87746.0,0.0684444]
[1766902524722,0.02421783,87755.0,87746.0,0.0684444]
[1766902524923,0.02421783,87754.0,87746.0,0.0684444]
[1766902525229,0.0114026,87761.0,87746.0,0.0684444]
[1766902525524,0.02421789,87760.0,87746.0,0.0684444]
[1766902525722,0.02421789,87759.0,87746.0,0.0684444]
[1766902525921,0.02421789,87758.0,87746.0,0.0684444]
[1766902526127,0.02421789,87757.0,87746.0,0.0684444]
[1766902526313,0.02421789,87756.0,87746.0,0.0684444]
[1766902526517,0.02421789,87755.0,87746.0,0.0684444]
[1766902526827,0.01821789,87754.0,87746.0,0.0684444]
[1766902527022,0.0114026,87761.0,87746.0,0.0684444]
[1766902531530,0.0114028,87759.0,87746.0,0.05704]
[1766902538837,0.02449426,87758.0,87746.0,0.05704]
[1766902539040,0.02449426,87757.0,87746.0,0.05704]
[1766902539338,0.02449426,87756.0,87746.0,0.05704]
[1766902539635,0.02449426,87755.0,87746.0,0.05704]
[1766902539836,0.02449426,87754.0,87746.0,0.05704]
[1766902540026,0.02449426,87753.0,87746.0,0.05704]
[1766902540226,0.0114028,87759.0,87746.0,0.05704]
[1766902540427,0.02449415,87758.0,87746.0,0.05704]
[1766902540629,0.02449415,87757.0,87746.0,0.05704]
[1766902540827,0.02449415,87756.0,87746.0,0.05704]
[1766902541024,0.02449415,87755.0,87746.0,0.05704]
[1766902541229,0.02449415,87754.0,87746.0,0.05704]
[1766902541426,0.02449415,87753.0,87746.0,0.05704]
[1766902541639,0.0114028,87759.0,87746.0,0.05704]
[1766902541839,0.0244941,87758.0,87746.0,0.05704]
[1766902542032,0.0244941,87757.0,87746.0,0.05704]
[1766902542232,0.0244941,87756.0,87746.0,0.05704]
[1766902542433,0.0244941,87755.0,87746.0,0.05704]
[1766902542637,0.0244941,87754.0,87746.0,0.05704]
[1766902542941,0.0244941,87753.0,87746.0,0.05704]
[1766902543140,0.0114028,87759.0,87746.0,0.05704]
[1766902543341,0.02449402,87758.0,87746.0,0.05704]
[1766902543541,0.02449402,87757.0,87746.0,0.05704]
[1766902543742,0.02449402,87756.0,87746.0,0.05704]
[1766902543945,0.02449402,87755.0,87746.0,0.05704]
[1766902544146,0.02449402,87754.0,87746.0,0.05704]
[1766902544348,0.02449402,87753.0,87746.0,0.05704]
[1766902544549,0.0114028,87759.0,87746.0,0.05704]
[1766902544848,0.02449399,87758.0,87746.0,0.05704]
[1766902545150,0.02449399,87757.0,87746.0,0.05704]
[1766902545349,0.02449399,87756.0,87746.0,0.05704]
[1766902545550,0.02449399,87755.0,87746.0,0.05704]
[1766902545849,0.02449399,87754.0,87746.0,0.05704]
[1766902546049,0.02449399,87753.0,87746.0,0.05704]
[1766902546249,0.0114028,87759.0,87746.0,0.05704]
[1766902546450,0.02449397,87758.0,87746.0,0.05704]
[1766902546650,0.02449397,87757.0,87746.0,0.05704]
[1766902546842,0.01849397,87756.0,87746.0,0.05704]
[1766902547048,0.0114028,87759.0,87746.0,0.05704]
[1766902558960,0.02444299,87758.0,87746.0,0.05704]
[1766902559158,0.02444299,87757.0,87746.0,0.05704]
[1766902559357,0.02444299,87756.0,87746.0,0.05704]
[1766902559560,0.02444299,87755.0,87746.0,0.05704]
[1766902559760,0.02444299,87754.0,87746.0,0.05704]
[1766902559957,0.02444299,87753.0,87746.0,0.05704]
[1766902560160,0.02444299,87752.0,87746.0,0.05704]
[1766902560359,0.02444299,87751.0,87746.0,0.05704]
[1766902560560,0.0114028,87759.0,87746.0,0.05704]
[1766902560761,0.02444355,87758.0,87746.0,0.05704]
[1766902560964,0.02444355,87757.0,87746.0,0.05704]
[1766902561258,0.02444355,87756.0,87746.0,0.05704]
[1766902561463,0.02444355,87755.0,87746.0,0.05704]
[1766902561667,0.02444355,87754.0,87746.0,0.05704]
[1766902561865,0.02444355,87753.0,87746.0,0.05704]
[1766902562065,0.02444355,87752.0,87746.0,0.05704]
[1766902562256,0.02444355,87751.0,87746.0,0.05704]
[1766902562457,0.0114028,87759.0,87746.0,0.05704]
[1766902562657,0.02444438,87758.0,87746.0,0.05704]
[1766902562855,0.02444438,87757.0,87746.0,0.05704]
[1766902563059,0.0114028,87759.0,87746.0,0.05704]
[1766902563060,0.02444438,87756.0,87746.0,0.05704]
[1766902563255,0.0114028,87759.0,87746.0,0.05704]
[1766902563256,0.02444438,87755.0,87746.0,0.05704]
[1766902563457,0.02444438,87754.0,87746.0,0.05704]
[1766902563664,0.02444438,87753.0,87746.0,0.05704]
[1766902563863,0.02444438,87752.0,87746.0,0.05704]
[1766902564163,0.02444438,87751.0,87746.0,0.05704]
[1766902564364,0.0114028,87759.0,87746.0,0.05704]
[1766902564565,0.02444409,87758.0,87746.0,0.05704]
[1766902564765,0.02444409,87757.0,87746.0,0.05704]
[1766902564967,0.02444409,87756.0,87746.0,0.05704]
[1766902565161,0.02444409,87755.0,87746.0,0.05704]
[1766902565361,0.02444409,87754.0,87746.0,0.05704]
[1766902565557,0.02444409,87753.0,87746.0,0.05704]
[1766902565759,0.0114028,87759.0,87746.0,0.05704]
[1766902565958,0.02444409,87758.0,87746.0,0.05704]
[1766902566158,0.02444409,87757.0,87746.0,0.05704]
[1766902566369,0.02444409,87756.0,87746.0,0.05704]
[1766902566565,0.02444409,87755.0,87746.0,0.05704]
[1766902566765,0.02444409,87754.0,87746.0,0.05704]
[1766902567065,0.02444409,87753.0,87746.0,0.05704]
[1766902567267,0.0114028,87759.0,87746.0,0.05704]
[1766902567466,0.02444409,87758.0,87746.0,0.05704]
[1766902567660,0.02444409,87757.0,87746.0,0.05704]
[1766902567858,0.02444409,87756.0,87746.0,0.05704]
[1766902568058,0.02444409,87755.0,87746.0,0.05704]
[1766902568264,0.02444409,87754.0,87746.0,0.05704]
[1766902568461,0.02444409,87753.0,87746.0,0.05704]
[1766902568662,0.0114028,87759.0,87746.0,0.05704]
[1766902568874,0.02444409,87758.0,87746.0,0.05704]
[1766902569167,0.02444409,87757.0,87746.0,0.05704]
[1766902569368,0.02444409,87756.0,87746.0,0.05704]
[1766902569568,0.02444409,87755.0,87746.0,0.05704]
[1766902569766,0.02444409,87754.0,87746.0,0.05704]
[1766902570065,0.02444409,87753.0,87746.0,0.05704]
[1766902570270,0.0114028,87759.0,87746.0,0.05704]
[1766902570460,0.0244441,87758.0,87746.0,0.05704]
[1766902570661,0.0244441,87757.0,87746.0,0.05704]
[1766902570862,0.0244441,87756.0,87746.0,0.05704]
[1766902571066,0.0244441,87755.0,87746.0,0.05704]
[1766902571266,0.0244441,87754.0,87746.0,0.05704]
[1766902571564,0.0244441,87753.0,87746.0,0.05704]
[1766902571767,0.0114028,87759.0,87746.0,0.05704]
[1766902571960,0.0244441,87758.0,87746.0,0.05704]
[1766902572160,0.0244441,87757.0,87746.0,0.05704]
[1766902572360,0.0244441,87756.0,87746.0,0.05704]
[1766902572562,0.0244441,87755.0,87746.0,0.05704]
[1766902572763,0.0244441,87754.0,87746.0,0.05704]
[1766902572973,0.0244441,87753.0,87746.0,0.05704]
[1766902573171,0.0114028,87759.0,87746.0,0.05704]
[1766902573470,0.02444412,87758.0,87746.0,0.05704]
[1766902573672,0.02444412,87757.0,87746.0,0.05704]
[1766902573969,0.02444412,87756.0,87746.0,0.05704]
[1766902574169,0.02444412,87755.0,87746.0,0.05704]
[1766902574369,0.02444412,87754.0,87746.0,0.05704]
[1766902574572,0.02444412,87753.0,87746.0,0.05704]
[1766902574770,0.0114028,87759.0,87746.0,0.05704]
[1766902574958,0.02444411,87758.0,87746.0,0.05704]
[1766902575163,0.02444411,87757.0,87746.0,0.05704]
[1766902575364,0.02444411,87756.0,87746.0,0.05704]
[1766902575564,0.02444411,87755.0,87746.0,0.05704]
[1766902575771,0.02444411,87754.0,87746.0,0.05704]
[1766902575972,0.02444411,87753.0,87746.0,0.05704]
[1766902576172,0.0114028,87759.0,87746.0,0.05704]
[1766902576376,0.0244346,87758.0,87746.0,0.05704]
[1766902576577,0.0244346,87757.0,87746.0,0.05704]
[1766902576874,0.0244346,87756.0,87746.0,0.05704]
[1766902577173,0.0244346,87755.0,87746.0,0.05704]
[1766902577374,0.0244346,87754.0,87746.0,0.05704]
[1766902577573,0.0244346,87753.0,87746.0,0.05704]
[1766902577774,0.0114028,87759.0,87746.0,0.05704]
[1766902577978,0.0244346,87758.0,87746.0,0.05704]
[1766902578275,0.0244346,87757.0,87746.0,0.05704]
[1766902578469,0.0244346,87756.0,87746.0,0.05704]
[1766902578669,0.0244346,87755.0,87746.0,0.05704]
[1766902578869,0.0244346,87754.0,87746.0,0.05704]
[1766902579069,0.0244346,87753.0,87746.0,0.05704]
[1766902579270,0.0114028,87759.0,87746.0,0.05704]
[1766902579571,0.0244346,87758.0,87746.0,0.05704]
[1766902579869,0.0244346,87757.0,87746.0,0.05704]
[1766902580069,0.0244346,87756.0,87746.0,0.05704]
[1766902580279,0.0244346,87755.0,87746.0,0.05704]
[1766902580481,0.0244346,87754.0,87746.0,0.05704]
[1766902580776,0.0244346,87753.0,87746.0,0.05704]
[1766902580977,0.0114028,87759.0,87746.0,0.05704]
[1766902581175,0.0244346,87758.0,87746.0,0.05704]
[1766902581375,0.0244346,87757.0,87746.0,0.05704]
[1766902581675,0.0244346,87756.0,87746.0,0.05704]
[1766902581876,0.0244346,87755.0,87746.0,0.05704]
[1766902582072,0.0114028,87759.0,87746.0,0.05704]
[1766902582073,0.0244346,87754.0,87746.0,0.05704]
[1766902582274,0.0244346,87753.0,87746.0,0.05704]
[1766902582476,0.0114028,87759.0,87746.0,0.05704]
[1766902582775,0.0244346,87758.0,87746.0,0.05704]
[1766902582977,0.0244346,87757.0,87746.0,0.05704]
[1766902583276,0.0244346,87756.0,87746.0,0.05704]
[1766902583476,0.0244346,87755.0,87746.0,0.05704]
[1766902583675,0.0244346,87754.0,87746.0,0.05704]
[1766902583886,0.0244346,87753.0,87746.0,0.05704]
[1766902584080,0.0114028,87759.0,87746.0,0.05704]
[1766902584281,0.0244346,87758.0,87746.0,0.05704]
[1766902584479,0.0244346,87757.0,87746.0,0.05704]
[1766902584676,0.0244346,87756.0,87746.0,0.05704]
[1766902584877,0.0244346,87755.0,87746.0,0.05704]
[1766902585077,0.0244346,87754.0,87746.0,0.05704]
[1766902585279,0.0184346,87753.0,87746.0,0.05704]
[1766902585480,0.0114028,87759.0,87746.0,0.05704]
[1766902597288,0.02437037,87758.0,87746.0,0.05704]
[1766902597483,0.02437037,87757.0,87746.0,0.05704]
[1766902597691,0.02437037,87756.0,87746.0,0.05704]
[1766902597887,0.02437037,87755.0,87746.0,0.05704]
[1766902598183,0.02437037,87754.0,87746.0,0.05704]
[1766902598384,0.02437037,87753.0,87746.0,0.05704]
[1766902598589,0.0114028,87759.0,87746.0,0.05704]
[1766902598780,0.02437057,87758.0,87746.0,0.05704]
[1766902598981,0.02437057,87757.0,87746.0,0.05704]
[1766902599184,0.02437057,87756.0,87746.0,0.05704]
[1766902599482,0.02437057,87755.0,87746.0,0.05704]
[1766902599682,0.02437057,87754.0,87746.0,0.05704]
[1766902599885,0.02437057,87753.0,87746.0,0.05704]
[1766902600085,0.0114028,87759.0,87746.0,0.05704]
[1766902600285,0.02437009,87758.0,87746.0,0.05704]
[1766902600487,0.02437009,87757.0,87746.0,0.05704]
[1766902600684,0.02437009,87756.0,87746.0,0.05704]
[1766902600885,0.02437009,87755.0,87746.0,0.05704]
[1766902601084,0.02437009,87754.0,87746.0,0.05704]
[1766902601286,0.02437009,87753.0,87746.0,0.05704]
[1766902601485,0.0114028,87759.0,87746.0,0.05704]
[1766902601687,0.02436998,87758.0,87746.0,0.05704]
[1766902601890,0.02436998,87757.0,87746.0,0.05704]
[1766902602090,0.02436998,87756.0,87746.0,0.05704]
[1766902602291,0.02436998,87755.0,87746.0,0.05704]
[1766902602591,0.02436998,87754.0,87746.0,0.05704]
[1766902602790,0.02436998,87753.0,87746.0,0.05704]
[1766902602991,0.0114028,87759.0,87746.0,0.05704]
[1766902603188,0.0243699,87758.0,87746.0,0.05704]
[1766902603386,0.0243699,87757.0,87746.0,0.05704]
[1766902603588,0.0243699,87756.0,87746.0,0.05704]
[1766902603788,0.0243699,87755.0,87746.0,0.05704]
[1766902603990,0.0243699,87754.0,87746.0,0.05704]
[1766902604183,0.0243699,87753.0,87746.0,0.05704]
[1766902604383,0.0114028,87759.0,87746.0,0.05704]
[1766902604683,0.02436977,87758.0,87746.0,0.05704]
[1766902604990,0.02436977,87757.0,87746.0,0.05704]
[1766902605193,0.02436977,87756.0,87746.0,0.05704]
[1766902605384,0.0114028,87759.0,87746.0,0.05704]
[1766902605385,0.02436977,87755.0,87746.0,0.05704]
[1766902605583,0.02436977,87754.0,87746.0,0.05704]
[1766902605785,0.02436977,87753.0,87746.0,0.05704]
[1766902605984,0.02436977,87752.0,87746.0,0.05704]
[1766902606185,0.02436977,87751.0,87746.0,0.05704]
[1766902606389,0.0114028,87759.0,87746.0,0.05704]
[1766902606591,0.02436967,87758.0,87746.0,0.05704]
[1766902606791,0.02436967,87757.0,87746.0,0.05704]
[1766902606992,0.02436967,87756.0,87746.0,0.05704]
[1766902607191,0.02436967,87755.0,87746.0,0.05704]
[1766902607397,0.02436967,87754.0,87746.0,0.05704]
[1766902607696,0.01836967,87753.0,87746.0,0.05704]
[1766902607896,0.0114028,87759.0,87746.0,0.05704]
[1766902616600,0.11443399,87760.0,87741.0,0.09692]
[1766902616800,0.0114029,87759.0,87740.0,0.0114052]
[1766902616999,0.0114029,87759.0,87740.0,0.11443399]
[1766902617803,0.0114031,87757.0,87738.0,0.06861642]
[1766902618000,0.05704,87756.0,87738.0,0.06861642]
[1766902619706,0.02434179,87755.0,87738.0,0.06861642]
[1766902619905,0.02434179,87754.0,87738.0,0.06861642]
[1766902620107,0.02434179,87753.0,87738.0,0.06861642]
[1766902620306,0.05704,87756.0,87738.0,0.06861642]
[1766902620508,0.02434179,87755.0,87738.0,0.06861642]
[1766902620708,0.02434179,87754.0,87738.0,0.06861642]
[1766902620907,0.02434179,87753.0,87738.0,0.06861642]
[1766902621207,0.05704,87756.0,87738.0,0.06861642]
[1766902621418,0.02434119,87755.0,87738.0,0.06861642]
[1766902621611,0.02434119,87754.0,87738.0,0.06861642]
[1766902621806,0.02434119,87753.0,87738.0,0.06861642]
[1766902622105,0.05704,87756.0,87738.0,0.06861642]
[1766902622308,0.02434073,87755.0,87738.0,0.06861642]
[1766902622507,0.02434073,87754.0,87738.0,0.06861642]
[1766902622807,0.02434073,87753.0,87738.0,0.06861642]
[1766902623012,0.05704,87756.0,87738.0,0.06861642]
[1766902623209,0.02434073,87755.0,87738.0,0.06861642]
[1766902623412,0.02434073,87754.0,87738.0,0.06861642]
[1766902623711,0.02434073,87753.0,87738.0,0.06861642]
[1766902623905,0.05704,87756.0,87738.0,0.06861642]
[1766902624107,0.02434036,87755.0,87738.0,0.06861642]
[1766902624407,0.02434036,87754.0,87738.0,0.06861642]
[1766902624608,0.02434036,87753.0,87738.0,0.06861642]
[1766902624807,0.05704,87756.0,87738.0,0.06861642]
[1766902625014,0.02440836,87755.0,87738.0,0.06861642]
[1766902625214,0.02440836,87754.0,87738.0,0.06861642]
[1766902625414,0.02440836,87753.0,87738.0,0.06861642]
[1766902625616,0.05704,87756.0,87738.0,0.06861642]
[1766902625816,0.02440811,87755.0,87738.0,0.06861642]
[1766902626010,0.02440811,87754.0,87738.0,0.06861642]
[1766902626211,0.02440811,87753.0,87738.0,0.06861642]
[1766902626411,0.05704,87756.0,87738.0,0.06861642]
[1766902626612,0.02440792,87755.0,87738.0,0.06861642]
[1766902626814,0.02440792,87754.0,87738.0,0.06861642]
[1766902627014,0.02440792,87753.0,87738.0,0.06861642]
[1766902627216,0.02440792,87752.0,87738.0,0.06861642]
[1766902627415,0.02440792,87751.0,87738.0,0.06861642]
[1766902627614,0.0114033,87755.0,87738.0,0.06861642]
[1766902627917,0.02440779,87754.0,87738.0,0.06861642]
[1766902628216,0.02440779,87753.0,87738.0,0.06861642]
[1766902628414,0.02440779,87752.0,87738.0,0.06861642]
[1766902628611,0.02440779,87751.0,87738.0,0.06861642]
[1766902628811,0.0114033,87755.0,87738.0,0.06861642]
[1766902629013,0.11443399,87750.0,87738.0,0.05721102]
[1766902629214,0.0244077,87749.0,87738.0,0.05721102]
[1766902629811,0.11443399,87750.0,87738.0,0.05721102]
[1766902630011,0.11443399,87750.0,87731.0,0.09692]
[1766902630012,0.0114043,87748.0,87731.0,0.09692]
[1766902630319,0.0114043,87748.0,87732.0,0.05704]
[1766902633218,0.00017102,87749.0,87733.0,0.0114061]
[1766902633619,0.05704,87748.0,87733.0,0.0114061]
[1766902649045,0.02525212,87747.0,87735.0,0.0114058]
[1766902649247,0.05704,87748.0,87735.0,0.0114058]
[1766902649446,0.02525264,87747.0,87735.0,0.0114058]
[1766902649650,0.05704,87748.0,87735.0,0.0114058]
[1766902649842,0.02525264,87747.0,87735.0,0.0114058]
[1766902650042,0.05704,87748.0,87735.0,0.0114058]
[1766902650348,0.02525264,87747.0,87735.0,0.0114058]
[1766902650647,0.05704,87748.0,87735.0,0.0114058]
[1766902650847,0.02525276,87747.0,87735.0,0.0114058]
[1766902651046,0.05704,87748.0,87735.0,0.0114058]
[1766902651247,0.02525276,87747.0,87735.0,0.0114058]
[1766902651548,0.05704,87748.0,87735.0,0.0114058]
[1766902652248,0.0252539,87747.0,87735.0,0.0114058]
[1766902652447,0.05704,87748.0,87735.0,0.0114058]
[1766902652646,0.02525411,87747.0,87735.0,0.0114058]
[1766902652846,0.05704,87748.0,87735.0,0.0114058]
[1766902653144,0.08229411,87747.0,87735.0,0.0114058]
[1766902653351,0.05704,87747.0,87735.0,0.0114058]
[1766902654952,0.02567544,87746.0,87735.0,0.0114058]
[1766902655144,0.05704,87747.0,87735.0,0.0114058]
[1766902655345,0.02567675,87746.0,87735.0,0.0114058]
[1766902655545,0.05704,87747.0,87735.0,0.0114058]
[1766902655843,0.02567675,87746.0,87735.0,0.0114058]
[1766902656044,0.05704,87747.0,87735.0,0.0114058]
[1766902656247,0.02567675,87746.0,87735.0,0.0114058]
[1766902656455,0.05704,87747.0,87737.0,0.0114056]
[1766902656650,0.02567838,87746.0,87737.0,0.0114056]
[1766902656850,0.05704,87747.0,87737.0,0.0114056]
[1766902657158,0.02567837,87746.0,87737.0,0.0114056]
[1766902657350,0.02567837,87745.0,87737.0,0.0114056]
[1766902657650,0.05704,87747.0,87737.0,0.0114056]
[1766902657954,0.02596779,87746.0,87737.0,0.0114056]
[1766902658255,0.02596779,87745.0,87737.0,0.0114056]
[1766902658447,0.05704,87747.0,87737.0,0.0114056]
[1766902658653,0.02597192,87746.0,87737.0,0.0114056]
[1766902658855,0.02597192,87745.0,87737.0,0.0114056]
[1766902659155,0.05704,87747.0,87737.0,0.0114056]
[1766902659455,0.02597264,87746.0,87737.0,0.0114056]
[1766902659654,0.02597264,87745.0,87737.0,0.0114056]
[1766902659851,0.05704,87747.0,87737.0,0.0114056]
[1766902660157,0.02597264,87746.0,87737.0,0.0114056]
[1766902660357,0.02597264,87745.0,87737.0,0.0114056]
[1766902660655,0.05704,87747.0,87737.0,0.0114056]
[1766902660854,0.02597265,87746.0,87737.0,0.0114056]
[1766902661054,0.02597265,87745.0,87737.0,0.0114056]
[1766902661255,0.05704,87747.0,87737.0,0.0114056]
[1766902661555,0.02597272,87746.0,87737.0,0.0114056]
[1766902661755,0.02597272,87745.0,87737.0,0.0114056]
[1766902661955,0.05704,87747.0,87737.0,0.0114056]
[1766902662157,0.02597276,87746.0,87737.0,0.0114056]
[1766902662354,0.02597276,87745.0,87737.0,0.0114056]
[1766902662545,0.05704,87747.0,87737.0,0.0114056]
[1766902662750,0.02597285,87746.0,87737.0,0.0114056]
[1766902662950,0.02597285,87745.0,87737.0,0.0114056]
[1766902663149,0.05704,87747.0,87737.0,0.0114056]
[1766902663350,0.02597291,87746.0,87737.0,0.0114056]
[1766902663644,0.02597291,87745.0,87737.0,0.0114056]
[1766902663849,0.05704,87747.0,87737.0,0.0114056]
[1766902664047,0.02597293,87746.0,87737.0,0.0114056]
[1766902664248,0.02597293,87745.0,87737.0,0.0114056]
[1766902664451,0.05704,87747.0,87737.0,0.0114056]
[1766902664652,0.025973,87746.0,87737.0,0.0114056]
[1766902664852,0.025973,87745.0,87737.0,0.0114056]
[1766902665055,0.05704,87747.0,87737.0,0.0114056]
[1766902665255,0.02626027,87746.0,87737.0,0.0114056]
[1766902665456,0.02626027,87745.0,87737.0,0.0114056]
[1766902665656,0.05704,87747.0,87737.0,0.0114056]
[1766902665851,0.02626036,87746.0,87737.0,0.0114056]
[1766902666057,0.02626036,87745.0,87737.0,0.0114056]
[1766902666363,0.05704,87747.0,87737.0,0.0114056]
[1766902666562,0.02626035,87746.0,87737.0,0.0114056]
[1766902666760,0.02626035,87745.0,87737.0,0.0114056]
[1766902666963,0.05704,87747.0,87737.0,0.0114056]
[1766902667160,0.02626035,87746.0,87737.0,0.0114056]
[1766902667363,0.02626035,87745.0,87737.0,0.0114056]
[1766902667557,0.05704,87747.0,87737.0,0.0114056]
[1766902667757,0.02626031,87746.0,87737.0,0.0114056]
[1766902668057,0.02626031,87745.0,87737.0,0.0114056]
[1766902668262,0.05704,87747.0,87737.0,0.0114056]